{"text_format":"1","workbook":"xlsx","n_sheets":2,"sheets":["Adressen","Rg_Eingang_Tag"],"not_rendered":{"charts":0,"images":0,"macros":1,"external_links":1,"defined_names":23,"comments":0,"pivot_tables":0},"unopened":[],"bounds":{"document_bytes":16777216,"sheet_cells":100000,"rows_first":2000,"rows_last":500,"rows_between":2000,"halvings":0,"cell_chars":16384,"cell_head_chars":4096},"cells_cut":0,"cells_raw":0,"read":"whole","date_system":"1900"}

{"sheet":"Adressen","index":0,"n_rows":335,"n_cols":19,"rows_kept":335,"cut":false,"hidden":false,"merged":[]}
[null,null,null,null,null,null,null,null,null,null,null,null,null,null,null,null,null,"Ma=",{"$f":"COUNTIF(P3:P399,\"Ma\")","v":293}]
[null,null,null,null,null,null,null,null,null,null,null,null,null,"Datum",null,"Fa",null,"Pak =",{"$f":"COUNTIF(P4:P401,\"Pak\")","v":14}]
[null,null,null,null,null,null,null,null,null,null,null,null,null,"2026-01-05",null,"Ma",null,"Skl =",{"$f":"COUNTIF(P3:P400,\"Skl\")","v":26}]
[null,null,null,null,null,null,null,null,null,null,null,null,null,"2026-01-05",null,"Ma",null,null,{"$f":"SUM(S1:S3)","v":333}]
[null,null,null,null,null,null,null,null,null,null,null,null,null,"2026-01-05",null,"Ma"]
[null,null,null,null,null,null,null,null,null,null,null,null,null,"2026-01-06",null,"Ma"]
[null,null,null,null,null,null,null,null,null,null,null,null,null,"2026-01-06",null,"Ma"]
[null,null,null,null,null,null,null,null,null,null,null,null,null,"2026-01-06",null,"Ma"]
[null,null,null,null,null,null,null,null,null,null,null,null,null,"2026-01-06",null,"Ma"]
[null,null,null,null,null,null,null,null,null,null,null,null,null,"2026-01-06",null,"Ma"]
[null,null,null,null,null,null,null,null,null,null,null,null,null,"2026-01-06",null,"Ma"]
[null,null,null,null,null,null,null,null,null,null,null,null,null,"2026-01-06",null,"Ma"]
[null,null,null,null,null,null,null,null,null,null,null,null,null,"2026-01-06",null,"Ma"]
[null,null,null,null,null,null,null,null,null,null,null,null,null,"2026-01-06",null,"Ma"]
[null,null,null,null,null,null,null,null,null,null,null,null,null,"2026-01-06",null,"Ma"]
[null,null,null,null,null,null,null,null,null,null,null,null,null,"2026-01-06",null,"Ma"]
[null,null,null,null,null,null,null,null,null,null,null,null,null,"2026-01-06",null,"Ma"]
[null,null,null,null,null,null,null,null,null,null,null,null,null,"2026-01-06",null,"Ma"]
[null,null,null,null,null,null,null,null,null,null,null,null,null,"2026-01-06",null,"Ma"]
[null,null,null,null,null,null,null,null,null,null,null,null,null,"2026-01-06",null,"Ma"]
[null,null,null,null,null,null,null,null,null,null,null,null,null,"2026-01-06",null,"Ma"]
[null,null,null,null,null,null,null,null,null,null,null,null,null,"2026-01-06",null,"Skl"]
[null,null,null,null,null,null,null,null,null,null,null,null,null,"2026-01-06",null,"Skl"]
[null,null,null,null,null,null,null,null,null,null,null,null,null,"2026-01-07",null,"Ma"]
[null,null,null,null,null,null,null,null,null,null,null,null,null,"2026-01-07",null,"Ma"]
[null,null,null,null,null,null,null,null,null,null,null,null,null,"2026-01-07",null,"Ma"]
[null,null,null,null,null,null,null,null,null,null,null,null,null,"2026-01-07",null,"Ma"]
[null,null,null,null,null,null,null,null,null,null,null,null,null,"2026-01-07",null,"Ma"]
[null,null,null,null,null,null,null,null,null,null,null,null,null,"2026-01-07",null,"Ma"]
[null,null,null,null,null,null,null,null,null,null,null,null,null,"2026-01-07",null,"Ma"]
[null,null,null,null,null,null,null,null,null,null,null,null,null,"2026-01-07",null,"Ma"]
[null,null,null,null,null,null,null,null,null,null,null,null,null,"2026-01-07",null,"Ma"]
[null,null,null,null,null,null,null,null,null,null,null,null,null,"2026-01-07",null,"Ma"]
[null,null,null,null,null,null,null,null,null,null,null,null,null,"2026-01-07",null,"Ma"]
[null,null,null,null,null,null,null,null,null,null,null,null,null,"2026-01-07",null,"Pak"]
[null,null,null,null,null,null,null,null,null,null,null,null,null,"2026-01-07",null,"Pak"]
[null,null,null,null,null,null,null,null,null,null,null,null,null,"2026-01-07",null,"Pak"]
[null,null,null,null,null,null,null,null,null,null,null,null,null,"2026-01-07",null,"Pak"]
[null,null,null,null,null,null,null,null,null,null,null,null,null,"2026-01-08",null,"Pak"]
[null,null,null,null,null,null,null,null,null,null,null,null,null,"2026-01-08",null,"Pak"]
[null,null,null,null,null,null,null,null,null,null,null,null,null,"2026-01-08",null,"Pak"]
[null,null,null,null,null,null,null,null,null,null,null,null,null,"2026-01-08",null,"Pak"]
[null,null,null,null,null,null,null,null,null,null,null,null,null,"2026-01-08",null,"Pak"]
[null,null,null,null,null,null,null,null,null,null,null,null,null,"2026-01-08",null,"Pak"]
[null,null,null,null,null,null,null,null,null,null,null,null,null,"2026-01-12",null,"Pak"]
[null,null,null,null,null,null,null,null,null,null,null,null,null,"2026-01-12",null,"Pak"]
[null,null,null,null,null,null,null,null,null,null,null,null,null,"2026-01-12",null,"Pak"]
[null,null,null,null,null,null,null,null,null,null,null,null,null,"2026-01-12",null,"Pak"]
[null,null,null,null,null,null,null,null,null,null,null,null,null,"2026-01-12",null,"Ma"]
[null,null,null,null,null,null,null,null,null,null,null,null,null,"2026-01-13",null,"Ma"]
[null,null,null,null,null,null,null,null,null,null,null,null,null,"2026-01-13",null,"Ma"]
[null,null,null,null,null,null,null,null,null,null,null,null,null,"2026-01-13",null,"Ma"]
[null,null,null,null,null,null,null,null,null,null,null,null,null,"2026-01-13",null,"Ma"]
[null,null,null,null,null,null,null,null,null,null,null,null,null,"2026-01-13",null,"Ma"]
[null,null,null,null,null,null,null,null,null,null,null,null,null,"2026-01-13",null,"Ma"]
[null,null,null,null,null,null,null,null,null,null,null,null,null,"2026-01-13",null,"Ma"]
[null,null,null,null,null,null,null,null,null,null,null,null,null,"2026-01-13",null,"Ma"]
[null,null,null,null,null,null,null,null,null,null,null,null,null,"2026-01-13",null,"Ma"]
[null,null,null,null,null,null,null,null,null,null,null,null,null,"2026-01-13",null,"Ma"]
[null,null,null,null,null,null,null,null,null,null,null,null,null,"2026-01-13",null,"Ma"]
[null,null,null,null,null,null,null,null,null,null,null,null,null,"2026-01-13",null,"Ma"]
[null,null,null,null,null,null,null,null,null,null,null,null,null,"2026-01-13",null,"Ma"]
[null,null,null,null,null,null,null,null,null,null,null,null,null,"2026-01-13",null,"Ma"]
[null,null,null,null,null,null,null,null,null,null,null,null,null,"2026-01-13",null,"Ma"]
[null,null,null,null,null,null,null,null,null,null,null,null,null,"2026-01-13",null,"Ma"]
[null,null,null,null,null,null,null,null,null,null,null,null,null,"2026-01-13",null,"Ma"]
[null,null,null,null,null,null,null,null,null,null,null,null,null,"2026-01-14",null,"Ma"]
[null,null,null,null,null,null,null,null,null,null,null,null,null,"2026-01-14",null,"Ma"]
[null,null,null,null,null,null,null,null,null,null,null,null,null,"2026-01-16",null,"Ma"]
[null,null,null,null,null,null,null,null,null,null,null,null,null,"2026-01-16",null,"Ma"]
[null,null,null,null,null,null,null,null,null,null,null,null,null,"2026-01-16",null,"Ma"]
[null,null,null,null,null,null,null,null,null,null,null,null,null,"2026-01-16",null,"Ma"]
[null,null,null,null,null,null,null,null,null,null,null,null,null,"2026-01-16",null,"Ma"]
[null,null,null,null,null,null,null,null,null,null,null,null,null,"2026-01-16",null,"Ma"]
[null,null,null,null,null,null,null,null,null,null,null,null,null,"2026-01-16",null,"Ma"]
[null,null,null,null,null,null,null,null,null,null,null,null,null,"2026-01-19",null,"Ma"]
[null,null,null,null,null,null,null,null,null,null,null,null,null,"2026-01-19",null,"Ma"]
[null,null,null,null,null,null,null,null,null,null,null,null,null,"2026-01-19",null,"Ma"]
[null,null,null,null,null,null,null,null,null,null,null,null,null,"2026-01-19",null,"Ma"]
[null,null,null,null,null,null,null,null,null,null,null,null,null,"2026-01-20",null,"Ma"]
[null,null,null,null,null,null,null,null,null,null,null,null,null,"2026-01-20",null,"Ma"]
[null,null,null,null,null,null,null,null,null,null,null,null,null,"2026-01-20",null,"Ma"]
[null,null,null,null,null,null,null,null,null,null,null,null,null,"2026-01-20",null,"Ma"]
[null,null,null,null,null,null,null,null,null,null,null,null,null,"2026-01-20",null,"Ma"]
[null,null,null,null,null,null,null,null,null,null,null,null,null,"2026-01-20",null,"Ma"]
[null,null,null,null,null,null,null,null,null,null,null,null,null,"2026-01-20",null,"Ma"]
[null,null,null,null,null,null,null,null,null,null,null,null,null,"2026-01-20",null,"Ma"]
[null,null,null,null,null,null,null,null,null,null,null,null,null,"2026-01-21",null,"Ma"]
[null,null,null,null,null,null,null,null,null,null,null,null,null,"2026-01-21",null,"Ma"]
[null,null,null,null,null,null,null,null,null,null,null,null,null,"2026-01-21",null,"Ma"]
[null,null,null,null,null,null,null,null,null,null,null,null,null,"2026-01-21",null,"Ma"]
[null,null,null,null,null,null,null,null,null,null,null,null,null,"2026-01-21",null,"Ma"]
[null,null,null,null,null,null,null,null,null,null,null,null,null,"2026-01-21",null,"Ma"]
[null,null,null,null,null,null,null,null,null,null,null,null,null,"2026-01-21",null,"Ma"]
[null,null,null,null,null,null,null,null,null,null,null,null,null,"2026-01-21",null,"Ma"]
[null,null,null,null,null,null,null,null,null,null,null,null,null,"2026-01-21",null,"Skl"]
[null,null,null,null,null,null,null,null,null,null,null,null,null,"2026-01-21",null,"Skl"]
[null,null,null,null,null,null,null,null,null,null,null,null,null,"2026-01-21",null,"Skl"]
[null,null,null,null,null,null,null,null,null,null,null,null,null,"2026-01-21",null,"Skl"]
[null,null,null,null,null,null,null,null,null,null,null,null,null,"2026-01-21",null,"Skl"]
[null,null,null,null,null,null,null,null,null,null,null,null,null,"2026-01-22",null,"Ma"]
[null,null,null,null,null,null,null,null,null,null,null,null,null,"2026-01-22",null,"Ma"]
[null,null,null,null,null,null,null,null,null,null,null,null,null,"2026-01-22",null,"Ma"]
[null,null,null,null,null,null,null,null,null,null,null,null,null,"2026-01-22",null,"Ma"]
[null,null,null,null,null,null,null,null,null,null,null,null,null,"2026-01-22",null,"Ma"]
[null,null,null,null,null,null,null,null,null,null,null,null,null,"2026-01-23",null,"Ma"]
[null,null,null,null,null,null,null,null,null,null,null,null,null,"2026-01-23",null,"Ma"]
[null,null,null,null,null,null,null,null,null,null,null,null,null,"2026-01-23",null,"Ma"]
[null,null,null,null,null,null,null,null,null,null,null,null,null,"2026-01-23",null,"Ma"]
[null,null,null,null,null,null,null,null,null,null,null,null,null,"2026-01-23",null,"Ma"]
[null,null,null,null,null,null,null,null,null,null,null,null,null,"2026-01-23",null,"Ma"]
[null,null,null,null,null,null,null,null,null,null,null,null,null,"2026-01-23",null,"Ma"]
[null,null,null,null,null,null,null,null,null,null,null,null,null,"2026-01-23",null,"Ma"]
[null,null,null,null,null,null,null,null,null,null,null,null,null,"2026-01-23",null,"Ma"]
[null,null,null,null,null,null,null,null,null,null,null,null,null,"2026-01-23",null,"Ma"]
[null,null,null,null,null,null,null,null,null,null,null,null,null,"2026-01-23",null,"Ma"]
[null,null,null,null,null,null,null,null,null,null,null,null,null,"2026-01-23",null,"Ma"]
[null,null,null,null,null,null,null,null,null,null,null,null,null,"2026-01-26",null,"Ma"]
[null,null,null,null,null,null,null,null,null,null,null,null,null,"2026-01-26",null,"Ma"]
[null,null,null,null,null,null,null,null,null,null,null,null,null,"2026-01-26",null,"Ma"]
[null,null,null,null,null,null,null,null,null,null,null,null,null,"2026-01-27",null,"Ma"]
[null,null,null,null,null,null,null,null,null,null,null,null,null,"2026-01-27",null,"Ma"]
[null,null,null,null,null,null,null,null,null,null,null,null,null,"2026-01-27",null,"Ma"]
[null,null,null,null,null,null,null,null,null,null,null,null,null,"2026-01-27",null,"Ma"]
[null,null,null,null,null,null,null,null,null,null,null,null,null,"2026-01-27",null,"Ma"]
[null,null,null,null,null,null,null,null,null,null,null,null,null,"2026-01-27",null,"Ma"]
[null,null,null,null,null,null,null,null,null,null,null,null,null,"2026-01-28",null,"Ma"]
[null,null,null,null,null,null,null,null,null,null,null,null,null,"2026-01-28",null,"Ma"]
[null,null,null,null,null,null,null,null,null,null,null,null,null,"2026-01-28",null,"Ma"]
[null,null,null,null,null,null,null,null,null,null,null,null,null,"2026-01-28",null,"Ma"]
[null,null,null,null,null,null,null,null,null,null,null,null,null,"2026-01-28",null,"Ma"]
[null,null,null,null,null,null,null,null,null,null,null,null,null,"2026-01-28",null,"Ma"]
[null,null,null,null,null,null,null,null,null,null,null,null,null,"2026-01-28",null,"Ma"]
[null,null,null,null,null,null,null,null,null,null,null,null,null,"2026-01-28",null,"Ma"]
[null,null,null,null,null,null,null,null,null,null,null,null,null,"2026-01-28",null,"Ma"]
[null,null,null,null,null,null,null,null,null,null,null,null,null,"2026-01-28",null,"Skl"]
[null,null,null,null,null,null,null,null,null,null,null,null,null,"2026-01-29",null,"Ma"]
[null,null,null,null,null,null,null,null,null,null,null,null,null,"2026-01-29",null,"Skl"]
[null,null,null,null,null,null,null,null,null,null,null,null,null,"2026-01-30",null,"Ma"]
[null,null,null,null,null,null,null,null,null,null,null,null,null,"2026-01-30",null,"Skl"]
[null,null,null,null,null,null,null,null,null,null,null,null,null,"2026-01-30",null,"Skl"]
[null,null,null,null,null,null,null,null,null,null,null,null,null,"2026-02-02",null,"Ma"]
[null,null,null,null,null,null,null,null,null,null,null,null,null,"2026-02-02",null,"Ma"]
[null,null,null,null,null,null,null,null,null,null,null,null,null,"2026-02-02",null,"Ma"]
[null,null,null,null,null,null,null,null,null,null,null,null,null,"2026-02-02",null,"Ma"]
[null,null,null,null,null,null,null,null,null,null,null,null,null,"2026-02-02",null,"Ma"]
[null,null,null,null,null,null,null,null,null,null,null,null,null,"2026-02-02",null,"Ma"]
[null,null,null,null,null,null,null,null,null,null,null,null,null,"2026-02-03",null,"Ma"]
[null,null,null,null,null,null,null,null,null,null,null,null,null,"2026-02-03",null,"Ma"]
[null,null,null,null,null,null,null,null,null,null,null,null,null,"2026-02-03",null,"Ma"]
[null,null,null,null,null,null,null,null,null,null,null,null,null,"2026-02-03",null,"Ma"]
[null,null,null,null,null,null,null,null,null,null,null,null,null,"2026-02-03",null,"Ma"]
[null,null,null,null,null,null,null,null,null,null,null,null,null,"2026-02-03",null,"Skl"]
[null,null,null,null,null,null,null,null,null,null,null,null,null,"2026-02-04",null,"Ma"]
[null,null,null,null,null,null,null,null,null,null,null,null,null,"2026-02-04",null,"Ma"]
[null,null,null,null,null,null,null,null,null,null,null,null,null,"2026-02-04",null,"Ma"]
[null,null,null,null,null,null,null,null,null,null,null,null,null,"2026-02-04",null,"Ma"]
[null,null,null,null,null,null,null,null,null,null,null,null,null,"2026-02-04",null,"Ma"]
[null,null,null,null,null,null,null,null,null,null,null,null,null,"2026-02-04",null,"Ma"]
[null,null,null,null,null,null,null,null,null,null,null,null,null,"2026-02-04",null,"Ma"]
[null,null,null,null,null,null,null,null,null,null,null,null,null,"2026-02-04",null,"Ma"]
[null,null,null,null,null,null,null,null,null,null,null,null,null,"2026-02-04",null,"Ma"]
[null,null,null,null,null,null,null,null,null,null,null,null,null,"2026-02-05",null,"Ma"]
[null,null,null,null,null,null,null,null,null,null,null,null,null,"2026-02-05",null,"Ma"]
[null,null,null,null,null,null,null,null,null,null,null,null,null,"2026-02-06",null,"Ma"]
[null,null,null,null,null,null,null,null,null,null,null,null,null,"2026-02-06",null,"Ma"]
[null,null,null,null,null,null,null,null,null,null,null,null,null,"2026-02-06",null,"Ma"]
[null,null,null,null,null,null,null,null,null,null,null,null,null,"2026-02-06",null,"Ma"]
[null,null,null,null,null,null,null,null,null,null,null,null,null,"2026-02-06",null,"Ma"]
[null,null,null,null,null,null,null,null,null,null,null,null,null,"2026-02-06",null,"Ma"]
[null,null,null,null,null,null,null,null,null,null,null,null,null,"2026-02-06",null,"Ma"]
[null,null,null,null,null,null,null,null,null,null,null,null,null,"2026-02-09",null,"Ma"]
[null,null,null,null,null,null,null,null,null,null,null,null,null,"2026-02-09",null,"Ma"]
[null,null,null,null,null,null,null,null,null,null,null,null,null,"2026-02-09",null,"Ma"]
[null,null,null,null,null,null,null,null,null,null,null,null,null,"2026-02-09",null,"Ma"]
[null,null,null,null,null,null,null,null,null,null,null,null,null,"2026-02-09",null,"Skl"]
[null,null,null,null,null,null,null,null,null,null,null,null,null,"2026-02-10",null,"Skl"]
[null,null,null,null,null,null,null,null,null,null,null,null,null,"2026-02-10",null,"Ma"]
[null,null,null,null,null,null,null,null,null,null,null,null,null,"2026-02-10",null,"Skl"]
[null,null,null,null,null,null,null,null,null,null,null,null,null,"2026-02-10",null,"Ma"]
[null,null,null,null,null,null,null,null,null,null,null,null,null,"2026-02-10",null,"Ma"]
[null,null,null,null,null,null,null,null,null,null,null,null,null,"2026-02-11",null,"Ma"]
[null,null,null,null,null,null,null,null,null,null,null,null,null,"2026-02-11",null,"Ma"]
[null,null,null,null,null,null,null,null,null,null,null,null,null,"2026-02-11",null,"Ma"]
[null,null,null,null,null,null,null,null,null,null,null,null,null,"2026-02-11",null,"Ma"]
[null,null,null,null,null,null,null,null,null,null,null,null,null,"2026-02-11",null,"Ma"]
[null,null,null,null,null,null,null,null,null,null,null,null,null,"2026-02-11",null,"Ma"]
[null,null,null,null,null,null,null,null,null,null,null,null,null,"2026-02-11",null,"Ma"]
[null,null,null,null,null,null,null,null,null,null,null,null,null,"2026-02-11",null,"Ma"]
[null,null,null,null,null,null,null,null,null,null,null,null,null,"2026-02-11",null,"Ma"]
[null,null,null,null,null,null,null,null,null,null,null,null,null,"2026-02-11",null,"Ma"]
[null,null,null,null,null,null,null,null,null,null,null,null,null,"2026-02-11",null,"Ma"]
[null,null,null,null,null,null,null,null,null,null,null,null,null,"2026-02-12",null,"Ma"]
[null,null,null,null,null,null,null,null,null,null,null,null,null,"2026-02-12",null,"Ma"]
[null,null,null,null,null,null,null,null,null,null,null,null,null,"2026-02-12",null,"Ma"]
[null,null,null,null,null,null,null,null,null,null,null,null,null,"2026-02-12",null,"Ma"]
[null,null,null,null,null,null,null,null,null,null,null,null,null,"2026-02-12",null,"Ma"]
[null,null,null,null,null,null,null,null,null,null,null,null,null,"2026-02-12",null,"Ma"]
[null,null,null,null,null,null,null,null,null,null,null,null,null,"2026-02-18",null,"Skl"]
[null,null,null,null,null,null,null,null,null,null,null,null,null,"2026-02-18",null,"Ma"]
[null,null,null,null,null,null,null,null,null,null,null,null,null,"2026-02-18",null,"Ma"]
[null,null,null,null,null,null,null,null,null,null,null,null,null,"2026-02-18",null,"Ma"]
[null,null,null,null,null,null,null,null,null,null,null,null,null,"2026-02-18",null,"Ma"]
[null,null,null,null,null,null,null,null,null,null,null,null,null,"2026-02-18",null,"Ma"]
[null,null,null,null,null,null,null,null,null,null,null,null,null,"2026-02-20",null,"Ma"]
[null,null,null,null,null,null,null,null,null,null,null,null,null,"2026-02-20",null,"Ma"]
[null,null,null,null,null,null,null,null,null,null,null,null,null,"2026-02-20",null,"Ma"]
[null,null,null,null,null,null,null,null,null,null,null,null,null,"2026-02-20",null,"Ma"]
[null,null,null,null,null,null,null,null,null,null,null,null,null,"2026-02-23",null,"Ma"]
[null,null,null,null,null,null,null,null,null,null,null,null,null,"2026-02-23",null,"Skl"]
[null,null,null,null,null,null,null,null,null,null,null,null,null,"2026-02-23",null,"Ma"]
[null,null,null,null,null,null,null,null,null,null,null,null,null,"2026-02-23",null,"Ma"]
[null,null,null,null,null,null,null,null,null,null,null,null,null,"2026-02-23",null,"Ma"]
[null,null,null,null,null,null,null,null,null,null,null,null,null,"2026-02-23",null,"Ma"]
[null,null,null,null,null,null,null,null,null,null,null,null,null,"2026-02-23",null,"Ma"]
[null,null,null,null,null,null,null,null,null,null,null,null,null,"2026-02-24",null,"Ma"]
[null,null,null,null,null,null,null,null,null,null,null,null,null,"2026-02-24",null,"Ma"]
[null,null,null,null,null,null,null,null,null,null,null,null,null,"2026-02-24",null,"Ma"]
[null,null,null,null,null,null,null,null,null,null,null,null,null,"2026-02-24",null,"Ma"]
[null,null,null,null,null,null,null,null,null,null,null,null,null,"2026-02-24",null,"Ma"]
[null,null,null,null,null,null,null,null,null,null,null,null,null,"2026-02-24",null,"Ma"]
[null,null,null,null,null,null,null,null,null,null,null,null,null,"2026-02-25",null,"Skl"]
[null,null,null,null,null,null,null,null,null,null,null,null,null,"2026-02-25",null,"Skl"]
[null,null,null,null,null,null,null,null,null,null,null,null,null,"2026-02-25",null,"Ma"]
[null,null,null,null,null,null,null,null,null,null,null,null,null,"2026-02-25",null,"Ma"]
[null,null,null,null,null,null,null,null,null,null,null,null,null,"2026-02-25",null,"Ma"]
[null,null,null,null,null,null,null,null,null,null,null,null,null,"2026-02-26",null,"Ma"]
[null,null,null,null,null,null,null,null,null,null,null,null,null,"2026-02-26",null,"Ma"]
[null,null,null,null,null,null,null,null,null,null,null,null,null,"2026-02-26",null,"Ma"]
[null,null,null,null,null,null,null,null,null,null,null,null,null,"2026-02-27",null,"Ma"]
[null,null,null,null,null,null,null,null,null,null,null,null,null,"2026-02-27",null,"Ma"]
[null,null,null,null,null,null,null,null,null,null,null,null,null,"2026-02-27",null,"Ma"]
[null,null,null,null,null,null,null,null,null,null,null,null,null,"2026-02-27",null,"Ma"]
[null,null,null,null,null,null,null,null,null,null,null,null,null,"2026-02-27",null,"Ma"]
[null,null,null,null,null,null,null,null,null,null,null,null,null,"2026-02-27",null,"Ma"]
[null,null,null,null,null,null,null,null,null,null,null,null,null,"2026-02-27",null,"Ma"]
[null,null,null,null,null,null,null,null,null,null,null,null,null,"2026-03-02",null,"Skl"]
[null,null,null,null,null,null,null,null,null,null,null,null,null,"2026-03-02",null,"Ma"]
[null,null,null,null,null,null,null,null,null,null,null,null,null,"2026-03-02",null,"Ma"]
[null,null,null,null,null,null,null,null,null,null,null,null,null,"2026-03-03",null,"Ma"]
[null,null,null,null,null,null,null,null,null,null,null,null,null,"2026-03-03",null,"Ma"]
[null,null,null,null,null,null,null,null,null,null,null,null,null,"2026-03-03",null,"Ma"]
[null,null,null,null,null,null,null,null,null,null,null,null,null,"2026-03-03",null,"Ma"]
[null,null,null,null,null,null,null,null,null,null,null,null,null,"2026-03-03",null,"Ma"]
[null,null,null,null,null,null,null,null,null,null,null,null,null,"2026-03-03",null,"Ma"]
[null,null,null,null,null,null,null,null,null,null,null,null,null,"2026-03-03",null,"Ma"]
[null,null,null,null,null,null,null,null,null,null,null,null,null,"2026-03-03",null,"Ma"]
[null,null,null,null,null,null,null,null,null,null,null,null,null,"2026-03-03",null,"Ma"]
[null,null,null,null,null,null,null,null,null,null,null,null,null,"2026-03-04",null,"Ma"]
[null,null,null,null,null,null,null,null,null,null,null,null,null,"2026-03-04",null,"Ma"]
[null,null,null,null,null,null,null,null,null,null,null,null,null,"2026-03-04",null,"Ma"]
[null,null,null,null,null,null,null,null,null,null,null,null,null,"2026-03-05",null,"Skl"]
[null,null,null,null,null,null,null,null,null,null,null,null,null,"2026-03-06",null,"Ma"]
[null,null,null,null,null,null,null,null,null,null,null,null,null,"2026-03-06",null,"Ma"]
[null,null,null,null,null,null,null,null,null,null,null,null,null,"2026-03-06",null,"Ma"]
[null,null,null,null,null,null,null,null,null,null,null,null,null,"2026-03-06",null,"Ma"]
[null,null,null,null,null,null,null,null,null,null,null,null,null,"2026-03-06",null,"Ma"]
[null,null,null,null,null,null,null,null,null,null,null,null,null,"2026-03-06",null,"Ma"]
[null,null,null,null,null,null,null,null,null,null,null,null,null,"2026-03-06",null,"Ma"]
[null,null,null,null,null,null,null,null,null,null,null,null,null,"2026-03-09",null,"Ma"]
[null,null,null,null,null,null,null,null,null,null,null,null,null,"2026-03-09",null,"Ma"]
[null,null,null,null,null,null,null,null,null,null,null,null,null,"2026-03-09",null,"Ma"]
[null,null,null,null,null,null,null,null,null,null,null,null,null,"2026-03-09",null,"Ma"]
[null,null,null,null,null,null,null,null,null,null,null,null,null,"2026-03-09",null,"Skl"]
[null,null,null,null,null,null,null,null,null,null,null,null,null,"2026-03-09",null,"Ma"]
[null,null,null,null,null,null,null,null,null,null,null,null,null,"2026-03-09",null,"Ma"]
[null,null,null,null,null,null,null,null,null,null,null,null,null,"2026-03-10",null,"Ma"]
[null,null,null,null,null,null,null,null,null,null,null,null,null,"2026-03-10",null,"Ma"]
[null,null,null,null,null,null,null,null,null,null,null,null,null,"2026-03-10",null,"Ma"]
[null,null,null,null,null,null,null,null,null,null,null,null,null,"2026-03-10",null,"Ma"]
[null,null,null,null,null,null,null,null,null,null,null,null,null,"2026-03-10",null,"Ma"]
[null,null,null,null,null,null,null,null,null,null,null,null,null,"2026-03-10",null,"Ma"]
[null,null,null,null,null,null,null,null,null,null,null,null,null,"2026-03-10",null,"Ma"]
[null,null,null,null,null,null,null,null,null,null,null,null,null,"2026-03-10",null,"Ma"]
[null,null,null,null,null,null,null,null,null,null,null,null,null,"2026-03-10",null,"Ma"]
[null,null,null,null,null,null,null,null,null,null,null,null,null,"2026-03-11",null,"Ma"]
[null,null,null,null,null,null,null,null,null,null,null,null,null,"2026-03-11",null,"Ma"]
[null,null,null,null,null,null,null,null,null,null,null,null,null,"2026-03-11",null,"Ma"]
[null,null,null,null,null,null,null,null,null,null,null,null,null,"2026-03-12",null,"Ma"]
[null,null,null,null,null,null,null,null,null,null,null,null,null,"2026-03-13",null,"Ma"]
[null,null,null,null,null,null,null,null,null,null,null,null,null,"2026-03-13",null,"Ma"]
[null,null,null,null,null,null,null,null,null,null,null,null,null,"2026-03-13",null,"Ma"]
[null,null,null,null,null,null,null,null,null,null,null,null,null,"2026-03-13",null,"Ma"]
[null,null,null,null,null,null,null,null,null,null,null,null,null,"2026-03-13",null,"Ma"]
[null,null,null,null,null,null,null,null,null,null,null,null,null,"2026-03-13",null,"Ma"]
[null,null,null,null,null,null,null,null,null,null,null,null,null,"2026-03-13",null,"Ma"]
[null,null,null,null,null,null,null,null,null,null,null,null,null,"2026-03-13",null,"Ma"]
[null,null,null,null,null,null,null,null,null,null,null,null,null,"2026-03-13",null,"Ma"]
[null,null,null,null,null,null,null,null,null,null,null,null,null,"2026-03-13",null,"Ma"]
[null,null,null,null,null,null,null,null,null,null,null,null,null,"2026-03-13",null,"Ma"]
[null,null,null,null,null,null,null,null,null,null,null,null,null,"2026-03-13",null,"Ma"]
[null,null,null,null,null,null,null,null,null,null,null,null,null,"2026-03-16",null,"Ma"]
[null,null,null,null,null,null,null,null,null,null,null,null,null,"2026-03-16",null,"Skl"]
[null,null,null,null,null,null,null,null,null,null,null,null,null,"2026-03-16",null,"Skl"]
[null,null,null,null,null,null,null,null,null,null,null,null,null,"2026-03-16",null,"Skl"]
[null,null,null,null,null,null,null,null,null,null,null,null,null,"2026-03-16",null,"Skl"]
[null,null,null,null,null,null,null,null,null,null,null,null,null,"2026-03-16",null,"Ma"]
[null,null,null,null,null,null,null,null,null,null,null,null,null,"2026-03-16",null,"Ma"]
[null,null,null,null,null,null,null,null,null,null,null,null,null,"2026-03-16",null,"Ma"]
[null,null,null,null,null,null,null,null,null,null,null,null,null,"2026-03-16",null,"Ma"]
[null,null,null,null,null,null,null,null,null,null,null,null,null,"2026-03-17",null,"Ma"]
[null,null,null,null,null,null,null,null,null,null,null,null,null,"2026-03-17",null,"Ma"]
[null,null,null,null,null,null,null,null,null,null,null,null,null,"2026-03-17",null,"Ma"]
[null,null,null,null,null,null,null,null,null,null,null,null,null,"2026-03-17",null,"Ma"]
[null,null,null,null,null,null,null,null,null,null,null,null,null,"2026-03-17",null,"Ma"]
[null,null,null,null,null,null,null,null,null,null,null,null,null,"2026-03-17",null,"Ma"]
[null,null,null,null,null,null,null,null,null,null,null,null,null,"2026-03-17",null,"Ma"]
[null,null,null,null,null,null,null,null,null,null,null,null,null,"2026-03-17",null,"Ma"]
[null,null,null,null,null,null,null,null,null,null,null,null,null,"2026-03-17",null,"Ma"]
[null,null,null,null,null,null,null,null,null,null,null,null,null,"2026-03-17",null,"Ma"]
[null,null,null,null,null,null,null,null,null,null,null,null,null,"2026-03-17",null,"Ma"]
[null,null,null,null,null,null,null,null,null,null,null,null,null,"2026-03-17",null,"Ma"]
[null,null,null,null,null,null,null,null,null,null,null,null,null,"2026-03-17",null,"Ma"]
[null,null,null,null,null,null,null,null,null,null,null,null,null,"2026-03-17",null,"Ma"]
[null,null,null,null,null,null,null,null,null,null,null,null,null,"2026-03-18",null,"Ma"]
[null,null,null,null,null,null,null,null,null,null,null,null,null,"2026-03-18",null,"Ma"]
[null,null,null,null,null,null,null,null,null,null,null,null,null,"2026-03-18",null,"Ma"]
[null,null,null,null,null,null,null,null,null,null,null,null,null,"2026-03-18",null,"Ma"]
[null,null,null,null,null,null,null,null,null,null,null,null,null,"2026-03-18",null,"Ma"]
[null,null,null,null,null,null,null,null,null,null,null,null,null,"2026-03-18",null,"Ma"]
[null,null,null,null,null,null,null,null,null,null,null,null,null,"2026-03-18",null,"Ma"]
[null,null,null,null,null,null,null,null,null,null,null,null,null,"2026-03-18",null,"Ma"]
[null,null,null,null,null,null,null,null,null,null,null,null,null,"2026-03-18",null,"Ma"]
[null,null,null,null,null,null,null,null,null,null,null,null,null,"2026-03-18",null,"Ma"]
[null,null,null,null,null,null,null,null,null,null,null,null,null,"2026-03-18",null,"Ma"]
[null,null,null,null,null,null,null,null,null,null,null,null,null,"2026-03-18",null,"Ma"]
[null,null,null,null,null,null,null,null,null,null,null,null,null,"2026-03-18",null,"Ma"]
[null,null,null,null,null,null,null,null,null,null,null,null,null,"2026-03-18",null,"Ma"]
[null,null,null,null,null,null,null,null,null,null,null,null,null,"2026-03-18",null,"Ma"]
[null,null,null,null,null,null,null,null,null,null,null,null,null,"2026-03-18",null,"Ma"]
[null,null,null,null,null,null,null,null,null,null,null,null,null,"2026-03-19",null,"Ma"]
[null,null,null,null,null,null,null,null,null,null,null,null,null,"2026-03-19",null,"Ma"]
[null,null,null,null,null,null,null,null,null,null,null,null,null,"2026-03-20",null,"Ma"]
[null,null,null,null,null,null,null,null,null,null,null,null,null,"2026-03-20",null,"Ma"]
[null,null,null,null,null,null,null,null,null,null,null,null,null,"2026-03-20",null,"Ma"]

{"sheet":"Rg_Eingang_Tag","index":1,"n_rows":51,"n_cols":60,"rows_kept":51,"cut":false,"hidden":false,"merged":[[1,5,1,6]]}
[]
[null,null,null,null,null,2026]
["WT",{"$f":"DATE(F2,1,1)","v":"2026-01-01"},"Ma","Skl","Pak","WT",{"$f":"DATE(F2,2,1)","v":"2026-02-01"},"Ma","Skl","Pak","WT",{"$f":"DATE(F2,3,1)","v":"2026-03-01"},"Ma","Skl","Pak","WT",{"$f":"DATE(F2,4,1)","v":"2026-04-01"},"Ma","Skl","Pak","WT",{"$f":"DATE(K2,5,1)","v":"1900-05-01"},"Ma","Skl","Pak","WT",{"$f":"DATE(P2,6,1)","v":"1900-06-01"},"Ma","Skl","Pak","WT",{"$f":"DATE(U2,7,1)","v":"1900-07-01"},"Ma","Skl","Pak","WT",{"$f":"DATE(Z2,8,1)","v":"1900-08-01"},"Ma","Skl","Pak","WT",{"$f":"DATE(AE2,9,1)","v":"1900-09-01"},"Ma","Skl","Pak","WT",{"$f":"DATE(AJ2,10,1)","v":"1900-10-01"},"Ma","Skl","Pak","WT",{"$f":"DATE(AO2,11,1)","v":"1900-11-01"},"Ma","Skl","Pak","WT",{"$f":"DATE(AT2,12,1)","v":"1900-12-01"},"Ma","Skl","Pak"]
[{"$f":"Jahresblock(F2,B3,C3:E3,Adressen!N3:P335)","v":"2026-01-01"},"2026-01-01",0,0,0,{"$f":"Jahresblock(F2,G3,C3:E3,Adressen!N3:P335)","v":"2026-02-01"},"2026-02-01",0,0,0,{"$f":"Jahresblock(F2,L3,C3:E3,Adressen!N3:P335)","v":"2026-03-01"},"2026-03-01",0,0,0]
["2026-01-02","2026-01-02",0,0,0,"2026-02-02","2026-02-02",6,0,0,"2026-03-02","2026-03-02",2,1,0]
["2026-01-03","2026-01-03",0,0,0,"2026-02-03","2026-02-03",5,1,0,"2026-03-03","2026-03-03",9,0,0]
["2026-01-04","2026-01-04",0,0,0,"2026-02-04","2026-02-04",9,0,0,"2026-03-04","2026-03-04",3,0,0]
["2026-01-05","2026-01-05",3,0,0,"2026-02-05","2026-02-05",2,0,0,"2026-03-05","2026-03-05",0,1,0]
["2026-01-06","2026-01-06",16,2,0,"2026-02-06","2026-02-06",7,0,0,"2026-03-06","2026-03-06",7,0,0]
["2026-01-07","2026-01-07",11,0,4,"2026-02-07","2026-02-07",0,0,0,"2026-03-07","2026-03-07",0,0,0]
["2026-01-08","2026-01-08",0,0,6,"2026-02-08","2026-02-08",0,0,0,"2026-03-08","2026-03-08",0,0,0]
["2026-01-09","2026-01-09",0,0,0,"2026-02-09","2026-02-09",4,1,0,"2026-03-09","2026-03-09",6,1,0]
["2026-01-10","2026-01-10",0,0,0,"2026-02-10","2026-02-10",3,2,0,"2026-03-10","2026-03-10",9,0,0]
["2026-01-11","2026-01-11",0,0,0,"2026-02-11","2026-02-11",11,0,0,"2026-03-11","2026-03-11",3,0,0]
["2026-01-12","2026-01-12",1,0,4,"2026-02-12","2026-02-12",6,0,0,"2026-03-12","2026-03-12",1,0,0]
["2026-01-13","2026-01-13",17,0,0,"2026-02-13","2026-02-13",0,0,0,"2026-03-13","2026-03-13",12,0,0]
["2026-01-14","2026-01-14",2,0,0,"2026-02-14","2026-02-14",0,0,0,"2026-03-14","2026-03-14",0,0,0]
["2026-01-15","2026-01-15",0,0,0,"2026-02-15","2026-02-15",0,0,0,"2026-03-15","2026-03-15",0,0,0]
["2026-01-16","2026-01-16",7,0,0,"2026-02-16","2026-02-16",0,0,0,"2026-03-16","2026-03-16",5,4,0]
["2026-01-17","2026-01-17",0,0,0,"2026-02-17","2026-02-17",0,0,0,"2026-03-17","2026-03-17",14,0,0]
["2026-01-18","2026-01-18",0,0,0,"2026-02-18","2026-02-18",5,1,0,"2026-03-18","2026-03-18",16,0,0]
["2026-01-19","2026-01-19",4,0,0,"2026-02-19","2026-02-19",0,0,0,"2026-03-19","2026-03-19",2,0,0]
["2026-01-20","2026-01-20",8,0,0,"2026-02-20","2026-02-20",4,0,0,"2026-03-20","2026-03-20",3,0,0]
["2026-01-21","2026-01-21",8,5,0,"2026-02-21","2026-02-21",0,0,0,"2026-03-21","2026-03-21",0,0,0]
["2026-01-22","2026-01-22",5,0,0,"2026-02-22","2026-02-22",0,0,0,"2026-03-22","2026-03-22",0,0,0]
["2026-01-23","2026-01-23",12,0,0,"2026-02-23","2026-02-23",6,1,0,"2026-03-23","2026-03-23",0,0,0]
["2026-01-24","2026-01-24",0,0,0,"2026-02-24","2026-02-24",6,0,0,"2026-03-24","2026-03-24",0,0,0]
["2026-01-25","2026-01-25",0,0,0,"2026-02-25","2026-02-25",3,2,0,"2026-03-25","2026-03-25",0,0,0]
["2026-01-26","2026-01-26",3,0,0,"2026-02-26","2026-02-26",3,0,0,"2026-03-26","2026-03-26",0,0,0]
["2026-01-27","2026-01-27",6,0,0,"2026-02-27","2026-02-27",7,0,0,"2026-03-27","2026-03-27",0,0,0]
["2026-01-28","2026-01-28",9,1,0,"2026-02-28","2026-02-28",0,0,0,"2026-03-28","2026-03-28",0,0,0]
["2026-01-29","2026-01-29",1,1,0,null,null,null,null,null,"2026-03-29","2026-03-29",0,0,0]
["2026-01-30","2026-01-30",1,2,0,null,null,null,null,null,"2026-03-30","2026-03-30",0,0,0]
["2026-01-31","2026-01-31",0,0,0,null,null,null,null,null,"2026-03-31","2026-03-31",0,0,0]
[null,null,{"$f":"IF(SUM(C8:C34)=0,\"\",SUM(C8:C34))","v":114},{"$f":"IF(SUM(D8:D34)=0,\"\",SUM(D8:D34))","v":11},{"$f":"IF(SUM(E8:E34)=0,\"\",SUM(E8:E34))","v":14},null,null,{"$f":"IF(SUM(H8:H34)=0,\"\",SUM(H8:H34))","v":67},7,"",null,null,78,6,"",null,null,"","","",null,null,"","","",null,null,"","","",null,null,"","","",null,null,"","","",null,null,"","","",null,null,"","","",null,null,"","","",null,null,"","",""]
[]
["Gesamt pro Monat /Jahr:"]
[null,null,"Ma","Pak","Slk"]
["Januar",null,{"$f":"+C35","v":114},{"$f":"+D35","v":11},{"$f":"+E35","v":14},{"$f":"SUM(C39:E39)","v":139}]
["Februar",null,{"$f":"+H35","v":67},{"$f":"+I35","v":7},{"$f":"+J35","v":""},{"$f":"SUM(C40:E40)","v":74}]
["März",null,{"$f":"+M35","v":78},{"$f":"+N35","v":6},{"$f":"+O35","v":""},84]
["April",null,null,null,null,0]
["Mai",null,null,null,null,0]
["Juni",null,null,null,null,0]
["Juli",null,null,null,null,0]
["August",null,null,null,null,0]
["September",null,null,null,null,0]
["Oktober",null,null,null,null,0]
["November",null,null,null,null,0]
["Dezember",null,null,null,null,0]
[null,"Gesamt:",{"$f":"SUM(C39:C50)","v":259},{"$f":"SUM(D39:D50)","v":24},14,297]